bitfinex-derivatives/quotes_SOLF0:USTF0_20240823
["timestamp","ask_amount","ask_price","bid_price","bid_amount"]
[1724451354553,0.04325811,152.88,152.84,3.2685]
[1724451355863,24.98,152.87,152.84,3.2685]
[1724451356551,24.98,152.85,152.78,1.3401]
[1724451356751,0.0457648,152.83,152.78,1.3401]
[1724451357358,25.0257648,152.83,152.78,1.3401]
[1724451357756,25.0257648,152.83,152.8,3.2691]
[1724451358159,0.0457648,152.83,152.8,3.2691]
[1724451358352,0.0457648,152.83,152.78,1.3401]
[1724451359358,0.0457648,152.83,152.74,27.6181]
[1724451359359,25.0257648,152.83,152.71,3.21607959]
[1724451359663,24.98,152.81,152.72,4.0173]
[1724451360159,0.04708097,152.78,152.76,3.27]
[1724451360363,0.04708097,152.78,152.72,4.0173]
[1724451360862,0.04708097,152.78,152.77,3.27]
[1724451364453,0.04708097,152.78,152.76,3.2701]
[1724451364658,0.04708097,152.78,152.72,4.0173]
[1724451365063,0.04708097,152.78,152.76,3.27]
[1724451365562,0.04708097,152.78,152.72,4.0173]
[1724451365764,25.02708097,152.78,152.72,4.0173]
[1724451365965,25.02708097,152.78,152.67,277.12]
[1724451366160,0.04610021,152.74,152.68,1.19884971]
[1724451366365,0.05022588,152.73,152.72,3.271]
[1724451367556,0.05022588,152.73,152.67,26.14]
[1724451367759,0.05022588,152.73,152.7,3.2713]
[1724451368467,0.05022588,152.73,152.67,26.14]
[1724451368468,25.03022588,152.73,152.67,26.14]
[1724451370162,25.03022588,152.73,152.6,250.98]
[1724451370363,3.2713,152.71,152.66,3.2722]
[1724451370562,3.2713,152.71,152.61,3.31343066]
[1724451370860,0.04754103,152.69,152.61,3.31343066]
[1724451371265,0.04754103,152.69,152.64,1.2731]
[1724451371968,0.04754103,152.69,152.6,24.98]
[1724451372166,0.04754103,152.69,152.65,3.2725]
[1724451372666,0.04754103,152.69,152.66,3.2721]
[1724451373071,0.04754103,152.69,152.6,28.3163225]
[1724451373262,0.04754103,152.69,152.63,24.98]
[1724451373471,0.04754103,152.69,152.64,1.3808]
[1724451373668,0.04754103,152.69,152.64,2.7617]
[1724451374564,0.04754103,152.69,152.67,3.272]
[1724451374771,0.04754103,152.69,152.64,2.7617]
[1724451374971,0.04754103,152.69,152.67,3.2719]
[1724451377068,0.04754103,152.69,152.66,3.2722]
[1724451377662,0.04754103,152.69,152.61,24.98]
[1724451377864,0.04754103,152.69,152.63,24.98]
[1724451378174,0.04754103,152.69,152.64,1.3997]
[1724451378875,0.04754103,152.69,152.68,3.2719]
[1724451379071,1.3491,152.76,152.68,3.2719]
[1724451379276,1.3491,152.76,152.69,0.05006375]
[1724451379477,1.3491,152.76,152.72,3.271]
[1724451379668,1.3491,152.76,152.66,1.2849]
[1724451379975,4.6193,152.76,152.66,1.2849]
[1724451380176,0.04889698,152.73,152.69,0.04221133]
[1724451380874,24.98,152.82,152.7,24.98]
[1724451381074,24.98,152.8,152.71,1.4024]
[1724451381772,0.04497236,152.77,152.74,0.04476927]
[1724451382072,0.04497236,152.77,152.76,3.27]
[1724451382876,0.04497236,152.77,152.74,0.04476927]
[1724451384872,24.98,152.76,152.74,0.04476927]
[1724451385078,26.3791,152.76,152.67,1.3912]
[1724451385378,3.2711,152.72,152.6,9.8833225]
[1724451385671,24.98,152.71,152.61,3.94847859]
[1724451385871,24.98,152.71,152.62,1.20057859]
[1724451386173,24.98,152.71,152.62,2.56647859]
[1724451386478,0.04852089,152.68,152.66,3.2723]
[1724451389075,0.04852089,152.68,152.65,0.04671721]
[1724451390776,24.98,152.67,152.65,0.04671721]
[1724451394080,24.98,152.67,152.65,3.31921721]
[1724451394290,24.98,152.67,152.65,0.04671721]
[1724451394879,28.2522,152.67,152.65,0.04671721]
[1724451395085,24.98,152.67,152.65,0.04671721]
[1724451395973,28.2522,152.67,152.65,0.04671721]
[1724451396783,3.2723,152.66,152.65,0.04671721]
[1724451396987,3.2723,152.66,152.57,3.9605]
[1724451397177,24.98,152.7,152.6,3.2735]
[1724451397178,24.98,152.65,152.6,3.2735]
[1724451397383,24.98,152.62,152.6,3.2735]
[1724451398178,27.5986,152.65,152.56,26.16]
[1724451398384,0.0427345,152.63,152.59,0.02209105]
[1724451399485,0.0427345,152.63,152.61,3.2733]
[1724451400686,0.0427345,152.63,152.62,3.2732]
[1724451408186,0.0427345,152.63,152.61,3.2733]
[1724451408991,0.0427345,152.63,152.62,3.2732]
[1724451414887,25.0227345,152.63,152.59,0.02209105]
[1724451415497,24.98,152.61,152.59,0.02209105]
[1724451415899,25.0227345,152.63,152.59,0.02209105]
[1724451416096,0.0427345,152.63,152.59,0.02209105]
[1724451416499,0.0427345,152.63,152.61,3.2732]
[1724451417098,0.0427345,152.63,152.59,0.02209105]
[1724451417297,25.0227345,152.63,152.59,0.02209105]
[1724451417700,3.2732,152.62,152.59,0.02209105]
[1724451418298,3.2732,152.62,152.59,3.29569105]
[1724451419810,28.2957345,152.63,152.6,3.2735]
[1724451421811,0.0427345,152.63,152.59,0.02209105]
[1724451422408,0.0427345,152.63,152.62,3.2732]
[1724451423014,0.0427345,152.63,152.59,0.02209105]
[1724451423413,25.0227345,152.63,152.59,0.02209105]
[1724451423913,24.98,152.61,152.59,0.02209105]
[1724451424308,24.98,152.61,152.51,26.18]
[1724451424507,24.98,152.58,152.56,3.2743]
[1724451424712,24.98,152.58,152.51,26.18]
[1724451424917,2.7173,152.61,152.48,2.6951]
[1724451425115,24.98,152.58,152.48,2.6951]
[1724451425311,24.98,152.58,152.49,1.20317566]
[1724451425312,0.04238321,152.55,152.49,1.20317566]
[1724451425512,1.3905,152.62,152.52,0.04349637]
[1724451425706,6.5412,152.74,152.53,24.98]
[1724451425707,24.98,152.64,152.53,24.98]
[1724451425907,24.98,152.64,152.55,24.98]
[1724451426313,24.98,152.64,152.6,3.2734]
[1724451426715,25.03005644,152.64,152.6,3.31689637]
[1724451427012,25.03005644,152.64,152.6,0.04349637]
[1724451427013,24.98,152.62,152.6,0.04349637]
[1724451428217,28.2532,152.62,152.6,0.04349637]
[1724451428411,24.98,152.62,152.6,0.04349637]
[1724451428816,24.98,152.62,152.6,3.31689637]
[1724451429019,24.98,152.62,152.6,0.04349637]
[1724451429621,24.98,152.62,152.6,3.31689637]
[1724451429927,25.03005644,152.64,152.6,0.04349637]
[1724451430519,0.05005644,152.64,152.6,0.04349637]
[1724451430723,0.05005644,152.64,152.63,3.2729]
[1724451431128,0.05005644,152.64,152.6,0.04349637]
[1724451431822,3.32295644,152.64,152.6,3.31709637]
[1724451432127,0.05005644,152.64,152.6,0.04349637]
[1724451432822,0.05005644,152.64,152.61,3.2732]
[1724451433125,0.05005644,152.64,152.6,0.04349637]
[1724451433424,3.273,152.63,152.6,3.31699637]
[1724451433615,0.05005644,152.64,152.6,3.31699637]
[1724451434014,0.05005644,152.64,152.6,0.04349637]
[1724451434625,0.05005644,152.64,152.63,3.2729]
[1724451435920,1.3004,152.72,152.61,24.98]
[1724451436317,3.2712,152.71,152.61,24.98]
[1724451436721,24.98,152.73,152.63,24.98]
[1724451436923,0.04900203,152.7,152.69,3.2715]
[1724451437124,0.04936598,152.71,152.68,0.0489227]
[1724451437623,0.04936598,152.71,152.7,3.2713]
[1724451438625,24.98,152.78,152.69,1.2922]
[1724451438928,24.98,152.78,152.7,24.98]
[1724451439122,2.5818,152.84,152.7,24.98]
[1724451439327,24.98,152.81,152.75,3.2702]
[1724451439727,0.04444154,152.8,152.76,0.04704354]
[1724451440629,0.04444154,152.8,152.78,3.2696]
[1724451440828,0.04444154,152.8,152.76,0.04704354]
[1724451441133,0.04444154,152.8,152.79,3.2695]
[1724451441334,0.04444154,152.8,152.76,0.04704354]
[1724451442427,2.7721,152.91,152.76,0.04704354]
[1724451442428,2.7721,152.91,152.79,24.98]
[1724451442628,28.2467,152.93,152.88,3.2676]
[1724451442828,24.98,152.93,152.82,24.98]
[1724451443338,4.1007,152.98,152.84,24.98]
[1724451443526,0.04450136,152.93,152.89,0.04885197]
[1724451444732,0.04450136,152.93,152.91,3.2668]
[1724451444929,0.04450136,152.93,152.89,0.04885197]
[1724451445841,24.98,152.99,152.89,1.3916]
[1724451446940,0.0492259,152.96,152.92,0.04548213]
[1724451447933,24.98,152.93,152.92,0.04548213]
[1724451449434,24.98,152.95,152.92,0.04548213]
[1724451450037,3.2663,152.94,152.92,0.04548213]
[1724451450236,24.98,152.93,152.92,0.04548213]
[1724451450944,28.2465,152.93,152.92,0.04548213]
[1724451451344,24.98,152.93,152.92,0.04548213]
[1724451451546,24.98,152.95,152.92,0.04548213]
[1724451452445,3.2665,152.93,152.92,0.04548213]
[1724451453744,3.2668,152.92,152.85,1.3834]
[1724451453938,27.6348,152.95,152.85,1.3834]
[1724451454148,3.2666,152.93,152.85,1.3834]
[1724451454642,0.04444175,152.91,152.85,1.3834]
[1724451454844,0.04444175,152.91,152.87,0.04847941]
[1724451455243,0.04444175,152.91,152.88,3.2676]
[1724451456248,0.04444175,152.91,152.89,3.2674]
[1724451456546,0.04444175,152.91,152.87,0.04847941]
[1724451456737,0.04444175,152.91,152.88,3.2675]
[1724451457244,24.98,152.9,152.87,0.04847941]
[1724451459049,3.2676,152.88,152.87,0.04847941]
[1724451463244,3.2688,152.83,152.77,1.0]
[1724451463447,27.6348,152.95,152.74,2.7666]
[1724451463448,24.98,152.84,152.74,2.7666]
[1724451463644,24.98,152.84,152.74,2.73]
[1724451463848,3.2692,152.81,152.77,3.2698]
[1724451464249,3.31228322,152.81,152.77,3.31965806]
[1724451464742,3.2693,152.8,152.77,3.31965806]
[1724451466649,3.2693,152.8,152.77,0.04985806]
[1724451466650,24.98,152.8,152.77,0.04985806]
[1724451467259,3.2695,152.79,152.77,0.04985806]
[1724451468550,3.2697,152.78,152.77,0.04985806]
[1724451474963,3.2696,152.79,152.77,0.04985806]
[1724451476369,3.2697,152.78,152.77,0.04985806]
[1724451476668,0.04308322,152.81,152.77,0.04985806]
[1724451477564,3.2694,152.8,152.77,0.04985806]
[1724451478363,0.04308322,152.81,152.77,0.04985806]
[1724451480371,3.2695,152.8,152.77,0.04985806]
[1724451480970,3.31228322,152.81,152.77,0.04985806]
[1724451481567,3.2694,152.8,152.77,3.31975806]
[1724451481970,0.04308322,152.81,152.79,3.2694]
[1724451482972,0.04308322,152.81,152.77,0.04985806]
[1724451484372,3.31228322,152.81,152.78,3.2697]
[1724451485267,0.04308322,152.81,152.78,3.2697]
[1724451485872,3.31218322,152.81,152.78,3.2697]
[1724451486371,0.04308322,152.81,152.77,0.04985806]
[1724451487260,3.2697,152.78,152.77,0.04985806]
[1724451487466,24.98,152.78,152.71,26.14]
[1724451487864,3.27,152.77,152.74,3.2706]
[1724451488462,0.04726431,152.77,152.74,0.04978107]
[1724451489673,3.2702,152.76,152.74,0.04978107]
[1724451490565,0.04726431,152.77,152.74,3.32038107]
[1724451490764,0.04726431,152.77,152.74,0.04978107]
[1724451491170,0.04726431,152.77,152.76,3.2702]
[1724451491983,26.2873,152.86,152.76,24.98]
[1724451492364,24.98,152.84,152.76,3.2702]
[1724451492769,24.98,152.84,152.74,24.98]
[1724451493074,0.04980883,152.81,152.77,3.31880194]
[1724451493270,0.04980883,152.81,152.77,0.04890194]
[1724451493271,24.98,152.8,152.77,0.04890194]
[1724451493473,3.2697,152.78,152.77,0.04890194]
[1724451494169,3.2696,152.79,152.77,0.04890194]
[1724451494572,24.98,152.8,152.77,0.04890194]
[1724451494774,3.2697,152.78,152.77,0.04890194]
[1724451496774,28.2497,152.78,152.77,0.04890194]
[1724451496969,3.2707,152.74,152.71,26.14]
[1724451497276,3.2707,152.74,152.69,2.6683]
[1724451497470,3.2707,152.74,152.71,3.2711]
[1724451497678,3.2705,152.75,152.71,3.2711]
[1724451497882,3.312892,152.75,152.71,3.31886503]
[1724451498276,0.042392,152.75,152.71,0.04776503]
[1724451498776,0.042392,152.75,152.74,3.2706]
[1724451499274,31.516,152.87,152.73,24.98]
[1724451499275,24.98,152.84,152.78,3.2697]
[1724451499875,24.98,152.84,152.72,26.337]
[1724451500383,24.98,152.84,152.76,0.04826522]
[1724451500384,0.04360218,152.8,152.76,0.04826522]
[1724451501379,25.02360218,152.8,152.76,0.04826522]
[1724451501584,3.2699,152.77,152.76,0.04826522]
[1724451502886,0.04360218,152.8,152.76,0.04826522]
[1724451504786,24.98,152.79,152.76,0.04826522]
[1724451506393,3.2699,152.77,152.76,0.04826522]
[1724451506596,24.98,152.79,152.76,0.04826522]
[1724451507094,3.2699,152.78,152.76,0.04826522]
[1724451507290,24.98,152.79,152.76,0.04826522]
[1724451507489,3.2699,152.77,152.76,0.04826522]
[1724451508293,3.2699,152.77,152.58,362.25090637]
[1724451508294,24.98,152.77,152.6,2.93427881]
[1724451508599,24.98,152.74,152.69,3.2716]
[1724451508798,3.2709,152.73,152.64,24.98]
[1724451509389,0.04523759,152.72,152.69,3.2716]
[1724451509690,3.2712,152.71,152.68,0.04494809]
[1724451510596,3.2712,152.71,152.68,3.31674809]
[1724451511189,3.2715,152.7,152.68,0.04494809]
[1724451511389,0.04523759,152.72,152.68,0.04494809]
[1724451511596,3.2713,152.71,152.68,0.04494809]
[1724451511992,3.2713,152.71,152.68,3.31674809]
[1724451513893,0.04523759,152.72,152.68,0.04494809]
[1724451514597,3.2712,152.71,152.68,3.31664809]
[1724451516394,3.31633759,152.72,152.69,3.2716]
[1724451517694,0.04523759,152.72,152.68,0.04494809]
[1724451517894,1.35023759,152.72,152.68,0.04494809]
[1724451518088,3.2717,152.69,152.68,0.04494809]
[1724451519300,0.04523759,152.72,152.68,0.04494809]
[1724451519698,3.31643759,152.72,152.69,3.2715]
[1724451522903,3.2712,152.71,152.69,3.2715]
[1724451523292,3.2712,152.71,152.68,3.31674809]
[1724451523498,3.2714,152.71,152.68,3.31674809]
[1724451523699,0.04523759,152.72,152.68,0.04494809]
[1724451523997,3.2714,152.71,152.68,0.04494809]
[1724451524397,0.04523759,152.72,152.68,0.04494809]
[1724451524601,3.31633759,152.72,152.69,3.2715]
[1724451524899,3.31633759,152.72,152.68,0.04494809]
[1724451525100,3.31633759,152.72,152.69,3.2715]
[1724451525497,3.31633759,152.72,152.68,0.04494809]
[1724451525498,0.04523759,152.72,152.68,0.04494809]
[1724451526004,0.04523759,152.72,152.69,3.2716]
[1724451526904,3.31633759,152.72,152.69,3.2716]
[1724451527606,3.31633759,152.72,152.7,3.2714]
[1724451528810,3.31633759,152.72,152.69,3.2716]
[1724451529307,0.04523759,152.72,152.71,3.2712]
[1724451529505,24.98,152.82,152.7,24.98]
[1724451529804,28.9645,152.85,152.73,24.98]
[1724451530204,28.9645,152.85,152.75,24.98]
[1724451530402,3.9845,152.85,152.75,24.98]
[1724451530602,0.04416928,152.82,152.78,0.04357487]
[1724451533098,3.2694,152.8,152.78,0.04357487]
[1724451533303,0.04416928,152.82,152.78,0.04357487]
[1724451533807,3.2694,152.8,152.78,0.04357487]
[1724451534208,3.2695,152.79,152.78,0.04357487]
[1724451537712,28.18663437,152.8,152.69,1.2985]
[1724451538016,3.2709,152.73,152.7,3.2714]
[1724451538313,24.98,152.76,152.69,1.2985]
[1724451538509,0.04523896,152.74,152.71,0.04180396]
[1724451539106,3.2709,152.73,152.71,0.04180396]
[1724451539508,0.04523896,152.74,152.71,0.04180396]
[1724451539704,3.271,152.73,152.71,0.04180396]
[1724451541315,3.271,152.72,152.71,0.04180396]
[1724451543213,0.04523896,152.74,152.71,0.04180396]
[1724451544415,3.31583896,152.74,152.71,3.31290396]
[1724451544617,3.31583896,152.74,152.71,0.04180396]
[1724451544618,0.04523896,152.74,152.71,0.04180396]
[1724451544819,0.04523896,152.74,152.73,3.2708]
[1724451545920,0.04523896,152.74,152.71,0.04180396]
[1724451546515,3.31593896,152.74,152.72,3.271]
[1724451547718,3.31593896,152.74,152.71,0.04180396]
[1724451547916,24.98,152.73,152.71,0.04180396]
[1724451548520,3.271,152.72,152.71,0.04180396]
[1724451551327,0.04523896,152.74,152.71,0.04180396]
[1724451551719,3.31603896,152.74,152.71,3.31300396]
[1724451551921,0.04523896,152.74,152.71,0.04180396]
[1724451553535,0.04523896,152.74,152.72,3.2709]
[1724451554426,3.31583896,152.74,152.72,3.2709]
[1724451554724,0.04523896,152.74,152.71,0.04180396]
[1724451555127,0.04523896,152.74,152.71,25.02180396]
[1724451556019,0.04523896,152.74,152.73,3.2708]
[1724451558324,24.98,152.84,152.73,24.98]
[1724451558528,24.98,152.84,152.75,24.98]
[1724451558721,3.269,152.82,152.78,3.2695]
[1724451558921,3.269,152.82,152.75,24.98]
[1724451559324,0.04161297,152.8,152.78,3.2695]
[1724451559526,0.04161297,152.8,152.77,0.04832484]
[1724451560220,0.04161297,152.8,152.78,3.2696]
[1724451561024,0.04161297,152.8,152.77,0.04832484]
[1724451561718,0.04161297,152.8,152.78,3.2696]
[1724451562021,0.04161297,152.8,152.77,0.04832484]
[1724451562225,3.2695,152.79,152.77,0.04832484]
[1724451563023,3.31101297,152.8,152.77,3.31822484]
[1724451563926,0.04161297,152.8,152.78,3.2697]
[1724451565830,25.02161297,152.8,152.64,232.5452]
[1724451566033,24.98,152.82,152.71,24.98]
[1724451566323,24.98,152.84,152.73,24.98]
[1724451567027,0.04557394,152.8,152.77,3.31786038]
[1724451568328,3.31487394,152.8,152.77,3.31786038]
[1724451569026,3.31497394,152.8,152.77,0.04806038]
[1724451569429,3.31497394,152.8,152.77,3.31786038]
[1724451569624,0.04557394,152.8,152.77,25.02806038]
[1724451569930,65.31029399,152.88,152.79,24.98]
[1724451570525,4.67131268,152.91,152.81,24.98]
[1724451570526,24.98,152.91,152.81,24.98]
[1724451570724,3.27747954,152.92,152.81,24.98]
[1724451570927,0.04677391,152.88,152.84,0.05040466]
[1724451571126,0.04677391,152.88,152.81,24.98]
[1724451571335,0.04677391,152.88,152.84,0.04863738]
[1724451571735,0.04677391,152.88,152.84,3.31693738]
[1724451572232,3.31457391,152.88,152.84,3.31693738]
[1724451572828,0.04677391,152.88,152.85,3.2682]
[1724451574335,3.31437391,152.88,152.85,3.2682]
[1724451574737,0.04677391,152.88,152.84,0.04863738]
[1724451575033,24.98,152.87,152.84,0.04863738]
[1724451575438,3.2682,152.85,152.84,0.04863738]
[1724451578031,28.29627477,152.85,152.69,226.0]
[1724451578238,24.98,152.8,152.71,3.23359666]
[1724451578540,28.2494,152.8,152.72,1.3942]
[1724451578938,3.2694,152.8,152.72,1.3942]
[1724451579240,0.04849157,152.78,152.75,0.05007981]
[1724451579435,0.04687492,152.78,152.75,0.04476924]
[1724451579636,0.04687492,152.78,152.77,3.2699]
[1724451581839,0.04687492,152.78,152.75,0.04476924]
[1724451583343,0.04687492,152.78,152.76,3.2701]
[1724451583735,0.04687492,152.78,152.75,0.04476924]
[1724451586241,0.04687492,152.78,152.76,3.2702]
[1724451586635,6.5346,152.9,152.75,25.02476924]
[1724451586844,24.98,152.86,152.78,3.2697]
[1724451587037,3.22288213,152.85,152.78,3.2697]
[1724451587432,1.3052,152.89,152.75,24.98]
[1724451587638,0.04414666,152.83,152.79,0.04463913]
[1724451587835,3.31294666,152.83,152.79,0.04463913]
[1724451588037,3.31294666,152.83,152.8,3.2692]
[1724451588636,3.31294666,152.83,152.79,3.31413913]
[1724451589941,3.2689,152.82,152.79,3.31413913]
[1724451590335,0.04414666,152.83,152.79,0.04463913]
[1724451590530,3.2693,152.8,152.79,0.04463913]
[1724451592142,0.04414666,152.83,152.8,3.2692]
[1724451592533,0.04414666,152.83,152.79,0.04463913]
[1724451592743,0.04414666,152.83,152.79,25.02463913]
[1724451594439,0.04414666,152.83,152.82,3.2689]
[1724451595747,24.98,152.9,152.83,3.2686]
[1724451596136,24.98,152.9,152.79,24.98]
[1724451596745,3.31744362,152.85,152.82,3.31459857]
[1724451597049,0.04904362,152.85,152.82,0.04579857]
[1724451598035,3.31744362,152.85,152.82,0.04579857]
[1724451598236,0.04904362,152.85,152.82,0.04579857]
[1724451599242,3.31734362,152.85,152.82,0.04579857]
[1724451599444,25.02904362,152.85,152.82,0.04579857]
[1724451599646,28.27876571,152.85,152.82,0.04579857]
[1724451600039,28.2487,152.83,152.82,0.04579857]
[1724451601044,24.98,152.83,152.74,1.2978]
[1724451601246,24.98,152.81,152.76,3.2701]
[1724451602045,3.31330073,152.8,152.77,0.0451253]
[1724451604139,0.04400073,152.8,152.77,0.0451253]
[1724451604652,0.04400073,152.8,152.78,3.2696]
[1724451604854,2.6068,152.87,152.77,0.0451253]
[1724451604855,6.5315,152.97,152.79,24.98]
[1724451605044,6.5315,152.97,152.8,2.6933]
[1724451605045,24.98,152.91,152.8,2.6933]
[1724451605245,24.98,152.89,152.8,2.6933]
[1724451605550,3.2683,152.85,152.8,2.6933]
[1724451605855,0.0474618,152.84,152.81,3.31546785]
[1724451606351,0.0474618,152.84,152.81,0.04656785]
[1724451607049,0.0474618,152.84,152.81,3.31556785]
[1724451607358,0.0474618,152.84,152.81,0.04656785]
[1724451607756,0.0474618,152.84,152.83,3.2687]
[1724451608851,0.0474618,152.84,152.81,0.04656785]
[1724451609852,31.37,152.83,152.81,0.04656785]
[1724451610452,3.2689,152.82,152.81,0.04656785]
[1724451610957,3.2699,152.78,152.74,1.3448]
[1724451611162,31.37,152.81,152.74,1.3448]
[1724451611458,1.3529,152.85,152.73,1.3958]
[1724451611653,31.37,152.8,152.71,1.3929]
[1724451611857,31.37,152.78,152.7,1.3011]
[1724451612055,0.04794527,152.76,152.72,0.04551764]
[1724451612253,31.37,152.75,152.72,0.04551764]
[1724451612750,31.37,152.73,152.72,0.04551764]
[1724451612957,34.6408,152.73,152.72,0.04551764]
[1724451613654,3.2715,152.7,152.65,4.0865]
[1724451613858,31.37,152.73,152.65,1.3011]
[1724451614358,3.2712,152.72,152.67,3.2719]
[1724451614656,19.63,152.78,152.67,3.2719]
[1724451614657,6.5331,152.94,152.67,31.37]
[1724451614859,99.95656967,152.81,152.68,1.4018]
[1724451615059,0.04143438,152.76,152.72,0.04985259]
[1724451615661,0.04143438,152.76,152.72,3.32065259]
[1724451615862,0.04143438,152.76,152.72,0.04985259]
[1724451617261,0.04143438,152.76,152.74,3.2705]
[1724451618967,0.04143438,152.76,152.75,3.2704]
[1724451619859,0.04143438,152.76,152.74,3.2705]
[1724451620659,0.04143438,152.76,152.72,0.04985259]
[1724451620871,0.04143438,152.76,152.75,3.2704]
[1724451621572,68.58656967,152.81,152.72,0.04985259]
[1724451621777,3.2679,152.87,152.77,31.37]
[1724451621980,3.23038191,152.87,152.78,2.6383]
[1724451622166,31.37,152.87,152.78,2.6383]
[1724451622372,31.37,152.84,152.78,2.6383]
[1724451622572,0.0494407,152.83,152.79,3.31443674]
[1724451622972,0.0494407,152.83,152.79,0.04503674]
[1724451623273,0.0494407,152.83,152.79,3.31443674]
[1724451623868,0.0494407,152.83,152.79,0.04503674]
[1724451624668,31.37,152.82,152.79,0.04503674]
[1724451625072,34.6393,152.8,152.79,0.04503674]
[1724451625276,31.37,152.8,152.62,6.5462]
[1724451625473,31.37,152.77,152.69,1.3988]
[1724451626274,0.04626657,152.75,152.72,3.2709]
[1724451626574,0.04626657,152.75,152.71,0.04539889]
[1724451626981,0.04626657,152.75,152.72,3.271]
[1724451627476,3.287933,152.87,152.73,34.7145031]
[1724451627672,3.287933,152.87,152.75,31.37]
[1724451627673,31.37,152.87,152.75,31.37]
[1724451627878,31.37,152.87,152.76,1.3441]
[1724451628073,31.37,152.9,152.77,31.37]
[1724451628473,31.37,152.9,152.82,0.04319833]
[1724451628474,0.04593461,152.85,152.82,0.04319833]
[1724451628673,0.04593461,152.85,152.83,3.2685]
[1724451629075,0.04593461,152.85,152.84,3.2684]
[1724451630080,0.04593461,152.85,152.82,0.04319833]
[1724451630577,3.31433461,152.85,152.82,0.04319833]
[1724451630776,0.04593461,152.85,152.82,0.04319833]
[1724451632675,0.04593461,152.85,152.82,3.31189833]
[1724451635181,3.31423461,152.85,152.82,0.04319833]
[1724451635383,0.04593461,152.85,152.82,0.04319833]
[1724451635680,3.2685,152.84,152.82,0.04319833]
[1724451638602,31.37,152.83,152.72,2.6289]
[1724451638782,31.37,152.81,152.72,2.6289]
[1724451639085,34.6392,152.81,152.77,3.2698]
[1724451639582,34.68587494,152.81,152.77,3.31210019]
[1724451639977,3.2696,152.79,152.77,0.04230019]
[1724451640181,31.37,152.79,152.77,0.04230019]
[1724451640387,31.37,152.79,152.69,1.3506]
[1724451640583,31.37,152.75,152.69,1.3506]
[1724451640786,31.37,152.75,152.66,2.6289]
[1724451641085,31.37,152.73,152.66,2.6289]
[1724451641486,0.05025344,152.71,152.68,0.03034858]
[1724451641686,3.2715,152.7,152.68,0.03034858]
[1724451641879,0.05025344,152.71,152.68,0.03034858]
[1724451642285,3.32155344,152.71,152.68,0.03034858]
[1724451642787,3.2715,152.7,152.68,0.03034858]
[1724451643383,31.42025344,152.71,152.68,0.03034858]
[1724451643681,31.42025344,152.71,152.62,1.3087]
[1724451643985,3.2723,152.66,152.62,1.3087]
[1724451644181,3.2723,152.66,152.61,3.2732]
[1724451644385,31.37,152.67,152.6,1.2656]
[1724451644581,3.2727,152.65,152.6,1.2656]
[1724451644785,31.37,152.67,152.59,4.6134]
[1724451644786,0.04233838,152.64,152.59,4.6134]
[1724451645284,0.04233838,152.64,152.59,1.3398]
[1724451646286,0.04233838,152.64,152.63,3.2729]
[1724451646791,0.04233838,152.64,152.59,1.3398]
[1724451647982,0.04233838,152.64,152.59,4.6136]
[1724451648891,3.2733,152.62,152.55,2.6539]
[1724451649088,0.04233994,152.6,152.55,2.6539]
[1724451649592,0.04233994,152.6,152.57,3.2741]
[1724451650000,0.04233994,152.6,152.55,2.6539]
[1724451650396,0.04233994,152.6,152.58,3.2739]
[1724451650594,0.04233994,152.6,152.56,31.37]
[1724451651094,0.04233994,152.6,152.59,3.2738]
[1724451653486,0.04233994,152.6,152.58,3.274]
[1724451653892,0.04233994,152.6,152.55,5.9285]
[1724451654096,0.04233994,152.6,152.55,2.6539]
[1724451654488,3.2739,152.59,152.55,2.6539]
[1724451654791,31.37,152.59,152.38,6.5563]
[1724451654987,0.04769912,152.54,152.49,2.7499]
[1724451655196,0.04879352,152.53,152.49,2.7499]
[1724451656096,0.04879352,152.53,152.5,3.2756]
[1724451656303,0.04879352,152.53,152.49,2.7499]
[1724451658598,0.04879352,152.53,152.51,3.2754]
[1724451658803,0.04879352,152.53,152.49,2.7499]
[1724451659502,0.04879352,152.53,152.5,3.2756]
[1724451660001,0.04879352,152.53,152.51,3.2755]